bitfinex/quotes_BTCUSD_20241206
["timestamp","ask_amount","ask_price","bid_price","bid_amount"]
[1733479539402,0.00317471,97951.0,97950.0,0.53217018]
[1733479540388,0.00317471,97951.0,97950.0,0.76046023]
[1733479540828,0.00317471,97951.0,97950.0,0.53265094]
[1733479543160,0.00317471,97951.0,97950.0,0.3592194]
[1733479543379,0.00317471,97951.0,97950.0,0.63393973]
[1733479544017,0.00317471,97951.0,97950.0,0.3592194]
[1733479544910,0.00317471,97951.0,97950.0,0.48725094]
[1733479545773,0.08,97971.0,97959.0,0.204165]
[1733479546018,0.284143,97971.0,97969.0,0.09164787]
[1733479546458,0.284143,97971.0,97970.0,0.00329761]
[1733479546883,0.292143,97971.0,97968.0,0.09164787]
[1733479547137,0.292143,97971.0,97970.0,0.00329761]
[1733479547352,0.284143,97971.0,97967.0,0.09164787]
[1733479547559,0.292143,97971.0,97970.0,0.00329761]
[1733479547774,0.284143,97971.0,97967.0,0.09164787]
[1733479547983,0.284143,97971.0,97970.0,0.00329761]
[1733479548202,0.488286,97971.0,97970.0,0.00329761]
[1733479548424,0.284143,97971.0,97966.0,0.09164787]
[1733479548643,0.284142,97971.0,97970.0,0.00329761]
[1733479548800,0.20415,97967.0,97966.0,0.09164787]
[1733479549128,0.284142,97971.0,97966.0,0.09164787]
[1733479549129,0.290142,97971.0,97968.0,0.001]
[1733479549691,0.284142,97971.0,97965.0,0.09164787]
[1733479549903,0.290142,97971.0,97970.0,0.001]
[1733479550332,0.284142,97971.0,97970.0,0.001]
[1733479550530,0.290142,97971.0,97970.0,0.001]
[1733479550752,0.284142,97971.0,97970.0,0.001]
[1733479551185,0.290142,97971.0,97970.0,0.002]
[1733479554673,0.290142,97971.0,97970.0,0.00529607]
[1733479554897,0.210142,97971.0,97970.0,0.002]
[1733479555110,0.210142,97971.0,97970.0,0.00529607]
[1733479555322,0.210142,97971.0,97970.0,0.002]
[1733479555584,0.210142,97971.0,97970.0,0.00529607]
[1733479555809,0.210142,97971.0,97970.0,0.002]
[1733479556213,0.210142,97971.0,97970.0,0.00529607]
[1733479559423,0.31517354,97971.0,97970.0,0.00529607]
[1733479559633,0.60569253,97971.0,97970.0,0.00529607]
[1733479559899,0.60569253,97971.0,97970.0,0.002]
[1733479560527,0.62011792,97971.0,97970.0,0.002]
[1733479561835,0.62011792,97971.0,97970.0,0.001]
[1733479562050,0.204183,97951.0,97950.0,0.00144475]
[1733479562277,0.31720199,97951.0,97950.0,0.00144475]
[1733479562486,0.31720199,97951.0,97950.0,0.00473908]
[1733479562682,0.31720199,97951.0,97950.0,0.00144475]
[1733479563841,0.39910199,97951.0,97950.0,0.00144475]
[1733479564090,0.39910199,97951.0,97950.0,0.00244475]
[1733479564203,0.07901899,97951.0,97950.0,0.00344475]
[1733479564412,0.018,97951.0,97950.0,0.15342949]
[1733479564620,0.018,97951.0,97950.0,0.03076418]
[1733479564827,0.02113969,97980.0,97952.0,0.05]
[1733479565071,0.0067314,97980.0,97975.0,0.204132]
[1733479565284,0.0067314,97980.0,97971.0,0.09166011]
[1733479565285,0.0067314,97980.0,97978.0,0.13749017]
[1733479565514,0.204125,97979.0,97978.0,0.13749017]
[1733479565703,0.0067314,97980.0,97978.0,0.13749017]
[1733479565913,0.0067314,97980.0,97978.0,0.14079438]
[1733479566324,0.33810075,97979.0,97978.0,0.14079438]
[1733479566526,0.44185654,97979.0,97978.0,0.00330421]
[1733479566737,0.44185654,97979.0,97958.0,0.18326376]
[1733479566738,0.44185654,97979.0,97959.0,0.09163188]
[1733479566952,0.44185654,97979.0,97956.0,0.13744782]
[1733479566953,0.204161,97962.0,97960.0,0.0031285]
[1733479567156,0.204161,97962.0,97957.0,0.09163188]
[1733479567368,0.204161,97962.0,97958.0,0.0031285]
[1733479567586,0.204161,97962.0,97957.0,0.09163188]
[1733479567787,0.204161,97962.0,97959.0,0.001]
[1733479567995,0.204161,97962.0,97959.0,0.09263188]
[1733479568208,0.204161,97962.0,97960.0,0.0031285]
[1733479568622,0.209161,97962.0,97959.0,0.001]
[1733479568826,0.204161,97962.0,97960.0,0.0031285]
[1733479569896,0.204161,97962.0,97958.0,0.08959738]
[1733479570109,0.204161,97962.0,97961.0,0.00299815]
[1733479570276,0.210161,97962.0,97960.0,0.001]
[1733479570475,0.204161,97962.0,97961.0,0.00299815]
[1733479570706,0.204161,97962.0,97955.0,0.13744782]
[1733479570876,0.205161,97962.0,97960.0,0.001]
[1733479571551,0.205161,97962.0,97961.0,0.00297654]
[1733479571772,0.204161,97962.0,97961.0,0.00297654]
[1733479571974,0.205161,97962.0,97961.0,0.00297654]
[1733479572206,0.204173,97956.0,97955.0,0.1394785]
[1733479572409,0.204173,97956.0,97955.0,0.002]
[1733479573253,0.204173,97956.0,97955.0,0.001]
[1733479573460,0.282373,97956.0,97950.0,0.00144475]
[1733479573670,0.204183,97951.0,97950.0,0.00144475]
[1733479574508,0.31821314,97951.0,97950.0,0.00144475]
[1733479574728,0.31821314,97951.0,97950.0,0.00244475]
[1733479575231,0.32121314,97951.0,97950.0,0.00244475]
[1733479575449,0.204236,97926.0,97916.0,0.204256]
[1733479575670,0.11803014,97951.0,97916.0,0.204256]
[1733479575671,0.204229,97930.0,97916.0,0.204256]
[1733479575890,0.204229,97930.0,97918.0,0.204252]
[1733479577355,0.213229,97930.0,97918.0,0.205252]
[1733479577578,0.213229,97930.0,97919.0,0.0029905]
[1733479577782,0.213229,97930.0,97920.0,0.204248]
[1733479577992,0.009,97930.0,97920.0,0.408496]
[1733479578192,0.009,97930.0,97921.0,0.20526712]
[1733479578408,0.009,97930.0,97921.0,0.20828776]
[1733479578608,0.204229,97929.0,97921.0,0.00404176]
[1733479578749,0.204229,97929.0,97921.0,0.00302064]
[1733479578959,0.204229,97929.0,97918.0,0.00202113]
[1733479579139,0.204229,97929.0,97919.0,0.00404177]
[1733479579548,0.204229,97929.0,97919.0,0.00302064]
[1733479579750,0.408459,97929.0,97920.0,0.001]
[1733479580165,0.408459,97929.0,97912.0,0.408528]
[1733479580378,0.417459,97929.0,97919.0,0.001]
[1733479580788,0.408459,97929.0,97920.0,0.00302064]
[1733479580991,0.408459,97929.0,97916.0,0.204256]
[1733479581195,0.408459,97929.0,97917.0,0.00302064]
[1733479581620,0.417459,97929.0,97920.0,0.001]
[1733479581820,0.418459,97929.0,97920.0,0.001]
[1733479582223,0.417459,97929.0,97920.0,0.001]
[1733479582742,0.204231,97928.0,97920.0,0.001]
[1733479582880,0.204231,97928.0,97912.0,0.204264]
[1733479583079,0.204249,97920.0,97916.0,0.001]
[1733479583522,0.204249,97920.0,97910.0,0.0002458]
[1733479583899,0.204242,97923.0,97911.0,0.00404184]
[1733479584301,0.001,97920.0,97916.0,0.009]
[1733479584511,0.002,97920.0,97916.0,0.018]
[1733479584718,0.002,97920.0,97916.0,0.009]
[1733479584895,0.001,97920.0,97913.0,0.00102117]
[1733479585100,0.001,97920.0,97912.0,0.204263]
[1733479585101,0.001,97920.0,97917.0,0.00302064]
[1733479585304,0.001,97920.0,97914.0,0.40954117]
[1733479585510,0.001,97920.0,97919.0,0.22725]
[1733479585739,0.001,97920.0,97919.0,0.33228154]
[1733479585910,0.001,97920.0,97919.0,0.33532492]
[1733479586097,0.002,97920.0,97919.0,0.33532492]
[1733479586302,0.00158214,97923.0,97919.0,0.33532492]
[1733479586515,0.00058214,97923.0,97920.0,0.31029962]
[1733479586719,0.00058214,97923.0,97920.0,0.40951608]
[1733479586922,0.00058214,97923.0,97921.0,0.00102107]
[1733479587121,0.00058214,97923.0,97921.0,0.00406445]
[1733479587327,0.00058214,97923.0,97921.0,0.00102107]
[1733479587529,0.00158214,97923.0,97922.0,0.00304338]
[1733479587784,0.00158214,97923.0,97920.0,0.009]
[1733479588269,0.00058214,97923.0,97921.0,0.00304338]
[1733479588482,0.20482514,97923.0,97921.0,0.00304338]
[1733479588655,0.00058214,97923.0,97915.0,0.204256]
[1733479588858,0.00058214,97923.0,97921.0,0.009]
[1733479589072,0.00158214,97923.0,97921.0,0.009]
[1733479589273,0.00158214,97923.0,97922.0,0.00304364]
[1733479589499,0.00158214,97923.0,97921.0,0.009]
[1733479589500,0.00258214,97923.0,97921.0,0.009]
[1733479589711,0.00158214,97923.0,97921.0,0.009]
[1733479589925,0.00158214,97923.0,97922.0,0.00304394]
[1733479590136,0.00258214,97923.0,97922.0,0.00304394]
[1733479590415,0.00258214,97923.0,97921.0,0.018]
[1733479590837,0.00158214,97923.0,97921.0,0.009]
[1733479591043,0.00158214,97923.0,97913.0,0.204262]
[1733479591044,0.00058214,97923.0,97913.0,0.204262]
[1733479591254,0.00158214,97923.0,97922.0,0.009]
[1733479591456,0.00258214,97923.0,97922.0,0.009]
[1733479592108,0.00158214,97923.0,97922.0,0.009]
[1733479592510,0.00158214,97923.0,97913.0,0.213262]
[1733479592720,0.20582414,97923.0,97913.0,0.009]
[1733479592929,0.20682414,97923.0,97921.0,0.009]
[1733479593138,0.00258214,97923.0,97921.0,0.009]
[1733479593369,0.20582514,97923.0,97915.0,0.204258]
[1733479593568,0.20582414,97923.0,97922.0,0.00304434]
[1733479593780,0.20682414,97923.0,97922.0,0.009]
[1733479593979,0.20426,97914.0,97913.0,0.009]
[1733479594192,0.20426,97914.0,97904.0,0.00102122]
[1733479595240,0.204263,97913.0,97904.0,0.00102122]
[1733479595461,0.204263,97913.0,97896.0,0.09151161]
[1733479595672,0.204263,97913.0,97878.0,0.1968]
[1733479595673,0.00127661,97912.0,97884.0,0.09151161]
[1733479595938,0.204267,97911.0,97892.0,0.204306]
[1733479596157,0.204254,97917.0,97893.0,0.00102138]
[1733479596373,0.204262,97913.0,97910.0,0.0092458]
[1733479596621,0.205262,97913.0,97910.0,0.0182458]
[1733479596830,0.001,97913.0,97911.0,0.00357174]
[1733479597044,0.001,97914.0,97911.0,0.00357174]
[1733479597259,0.001,97914.0,97910.0,0.0092458]
[1733479597260,0.009,97911.0,97910.0,0.0102458]
[1733479597465,0.009,97911.0,97910.0,0.01381754]
[1733479597666,0.213267,97911.0,97910.0,0.00481754]
[1733479598129,0.213267,97911.0,97910.0,0.0022458]
[1733479598540,0.204267,97911.0,97910.0,0.0002458]
[1733479598958,0.204267,97911.0,97910.0,0.0012458]
[1733479599170,0.204267,97911.0,97910.0,0.0002458]
[1733479599379,0.213267,97911.0,97910.0,0.0012458]
[1733479599583,0.222267,97911.0,97910.0,0.0022458]
[1733479600473,0.304567,97911.0,97910.0,0.0022458]
[1733479601105,0.222267,97911.0,97910.0,0.0022458]
[1733479605420,0.018,97911.0,97910.0,0.0022458]
[1733479605674,0.018,97911.0,97910.0,0.2065148]
[1733479606108,0.018,97911.0,97910.0,0.21008654]
[1733479609371,0.018,97911.0,97910.0,0.00581754]
[1733479611434,0.018,97911.0,97910.0,0.11187035]
[1733479611636,0.00058214,97923.0,97910.0,0.77732919]
[1733479612033,0.00058214,97923.0,97922.0,0.204244]
[1733479612209,0.00058214,97923.0,97922.0,0.42371285]
[1733479612425,0.00058214,97923.0,97922.0,0.41600352]
[1733479612553,0.00058214,97923.0,97922.0,0.98212916]
[1733479612760,0.00058214,97923.0,97922.0,1.08716379]
[1733479612971,0.00158214,97923.0,97922.0,0.85852253]
[1733479613213,0.00158214,97923.0,97922.0,0.62559607]
[1733479613445,0.00158214,97923.0,97922.0,0.20847198]
[1733479613446,0.00958214,97923.0,97922.0,0.20847198]
[1733479613658,0.00058214,97923.0,97922.0,0.20747198]
[1733479613833,0.00158214,97923.0,97922.0,0.21647198]
[1733479614287,0.00158214,97923.0,97922.0,0.01222798]
[1733479615555,0.00258214,97923.0,97922.0,0.02122798]
[1733479615957,0.00258214,97923.0,97922.0,0.018]
[1733479616162,0.00258214,97923.0,97922.0,0.02120997]
[1733479616579,0.00158214,97923.0,97922.0,0.01220997]
[1733479616795,0.00058214,97923.0,97922.0,0.00420997]
[1733479617061,0.00058214,97923.0,97922.0,0.00523112]
[1733479617274,0.00058214,97923.0,97922.0,0.11026266]
[1733479617493,0.00058214,97923.0,97922.0,0.33811229]
[1733479617717,0.00058214,97923.0,97922.0,0.44727428]
[1733479617956,0.00058214,97923.0,97922.0,0.10924151]
[1733479618208,0.00058214,97923.0,97922.0,0.09783576]
[1733479618433,0.00058214,97923.0,97922.0,0.00420997]
[1733479618944,0.00058214,97923.0,97922.0,0.01220997]
[1733479619402,0.00058214,97923.0,97922.0,0.11281471]
[1733479619626,0.00058214,97923.0,97922.0,0.11383579]
[1733479620064,0.00058214,97923.0,97922.0,0.02223105]
[1733479620534,0.00058214,97923.0,97922.0,0.15963655]
[1733479621793,0.00058214,97923.0,97922.0,0.49807372]
[1733479622014,0.00058214,97923.0,97922.0,0.02120997]
[1733479622524,0.00058214,97923.0,97922.0,0.02223105]
[1733479623969,0.00058214,97923.0,97922.0,0.15963655]
[1733479624191,0.00058214,97923.0,97922.0,0.00321447]
[1733479624412,0.00058214,97923.0,97922.0,0.09489099]
[1733479624636,0.00058214,97923.0,97921.0,0.09167652]
[1733479624881,0.00058214,97923.0,97922.0,0.00381746]
[1733479626098,0.00158214,97923.0,97922.0,0.00381746]
[1733479626325,0.00058214,97923.0,97922.0,0.00381746]
[1733479626567,0.00158214,97923.0,97922.0,0.01281746]
[1733479627232,0.00158214,97923.0,97922.0,0.02181746]
[1733479628809,0.00158214,97923.0,97922.0,0.018]
[1733479629757,0.07868214,97923.0,97922.0,0.018]
[1733479633163,0.00158214,97923.0,97922.0,0.018]
[1733479633839,0.00158214,97923.0,97922.0,0.02208309]
[1733479634352,0.20582414,97923.0,97922.0,0.02208309]
[1733479635310,0.20582414,97923.0,97922.0,0.018]
[1733479643186,0.31085568,97923.0,97922.0,0.018]
[1733479644294,0.31978232,97923.0,97922.0,0.009]
[1733479644525,0.32878232,97923.0,97922.0,0.01]
[1733479645134,0.32778232,97923.0,97922.0,0.001]
[1733479645568,0.33678232,97923.0,97922.0,0.002]
[1733479646279,0.47785568,97923.0,97922.0,0.002]
[1733479646486,0.48677923,97923.0,97922.0,0.002]
[1733479648332,0.47785568,97923.0,97922.0,0.002]
[1733479648543,0.4867787,97923.0,97922.0,0.002]
[1733479649402,0.23174716,97923.0,97922.0,0.002]
[1733479649702,0.01758214,97923.0,97922.0,0.002]
[1733479649873,0.01758214,97923.0,97922.0,0.05142862]
[1733479650363,0.01758214,97923.0,97922.0,0.00555822]
[1733479650582,0.009,97923.0,97922.0,0.00455822]
[1733479651019,0.018,97923.0,97922.0,0.09725804]
[1733479651270,0.0017304,97930.0,97922.0,0.34403687]
[1733479651503,0.204229,97929.0,97928.0,0.18336397]
[1733479651776,0.204229,97929.0,97928.0,0.33847865]
[1733479651984,0.204229,97929.0,97928.0,0.34203687]
[1733479652426,0.0017304,97930.0,97928.0,0.34203687]
[1733479652638,0.0107304,97930.0,97929.0,0.47599813]
[1733479652868,0.0107304,97930.0,97929.0,0.09168075]
[1733479652869,0.0017304,97930.0,97929.0,0.09168075]
[1733479653111,0.0017304,97930.0,97929.0,0.00354807]
[1733479653324,0.0017304,97930.0,97929.0,0.09168171]
[1733479653557,0.204229,97929.0,97928.0,0.09268171]
[1733479653771,0.204229,97929.0,97928.0,0.001]
[1733479653976,0.279329,97929.0,97928.0,0.001]
[1733479655256,0.204237,97925.0,97924.0,0.09168171]
[1733479657211,0.204237,97925.0,97924.0,0.10068171]
[1733479658353,0.205237,97925.0,97924.0,0.018]
[1733479659946,0.205237,97925.0,97924.0,0.10971445]
[1733479660396,0.205237,97925.0,97924.0,0.10971637]
[1733479660839,0.205237,97925.0,97924.0,0.018]
[1733479662657,0.46026854,97925.0,97924.0,0.018]
[1733479662873,0.52118996,97925.0,97924.0,0.02154495]
[1733479663382,0.52118996,97925.0,97920.0,2e-07]
[1733479663383,0.25,97922.0,97920.0,2e-07]
[1733479663578,0.59607581,97921.0,97920.0,2e-07]
[1733479663787,0.84426062,97921.0,97920.0,2e-07]
[1733479664911,0.8776218,97921.0,97920.0,2e-07]
[1733479665616,0.8866218,97921.0,97920.0,2e-07]
[1733479665826,0.8866218,97921.0,97920.0,0.0010002]
[1733479666035,0.8866218,97921.0,97920.0,2e-07]
[1733479668143,0.85326062,97921.0,97920.0,2e-07]
[1733479668378,0.81549896,97921.0,97920.0,2e-07]
[1733479671571,0.86549896,97921.0,97920.0,2e-07]
[1733479671780,0.90161093,97921.0,97920.0,2e-07]
[1733479672192,0.94400324,97921.0,97920.0,2e-07]
[1733479672648,0.93508182,97921.0,97920.0,2e-07]
[1733479672924,0.94397236,97921.0,97920.0,2e-07]
[1733479673355,0.98008433,97921.0,97920.0,2e-07]
[1733479673535,0.93008433,97921.0,97920.0,2e-07]
[1733479673857,0.98008433,97921.0,97920.0,2e-07]
[1733479675075,0.504267,97911.0,97910.0,2e-07]
[1733479675334,1.11672563,97911.0,97910.0,2e-07]
[1733479675551,1.17430361,97911.0,97910.0,2e-07]
[1733479676058,0.354313,97889.0,97888.0,0.0005]
[1733479676304,0.458313,97889.0,97888.0,0.0005]
[1733479677029,0.56334454,97889.0,97888.0,0.0005]
[1733479677515,0.56334454,97889.0,97888.0,0.0015]
[1733479677516,0.5724027,97889.0,97888.0,0.0015]
[1733479677737,0.58127311,97889.0,97888.0,0.0015]
[1733479678471,0.58127311,97889.0,97870.0,0.0008653]
[1733479678472,0.35435,97871.0,97870.0,0.0008653]
[1733479678705,0.56338154,97871.0,97870.0,0.0008653]
[1733479679562,0.45835,97871.0,97870.0,0.0008653]
[1733479679775,0.204348,97873.0,97870.0,0.1293653]
[1733479680198,0.20434,97877.0,97870.0,0.13275818]
[1733479680416,0.00905816,97889.0,97870.0,0.13275818]
[1733479680417,0.20435,97872.0,97870.0,0.13275818]
[1733479680832,0.204346,97873.0,97870.0,0.1293653]
[1733479681277,0.009,97871.0,97870.0,0.1293653]
[1733479681491,0.213346,97873.0,97870.0,0.1293653]
[1733479681909,0.20435,97871.0,97870.0,0.1293653]
[1733479682572,0.21335,97871.0,97870.0,0.1293653]
[1733479682781,0.20435,97871.0,97870.0,0.1293653]
[1733479683419,0.21335,97871.0,97870.0,0.1293653]
[1733479683647,0.21335,97871.0,97870.0,0.0489653]
[1733479683862,0.20435,97871.0,97870.0,0.0489653]
[1733479684302,0.20435,97871.0,97870.0,0.0509653]
[1733479684303,0.20635,97871.0,97870.0,0.0509653]
[1733479684514,0.20635,97871.0,97870.0,0.0028653]
[1733479685593,0.20635,97871.0,97870.0,0.0845653]
[1733479685814,0.20635,97871.0,97870.0,0.0028653]
[1733479687372,0.31138154,97871.0,97870.0,0.0028653]
[1733479687589,0.46138154,97871.0,97870.0,0.0028653]
[1733479688469,0.46038154,97871.0,97870.0,0.0018653]
[1733479688684,0.46038154,97871.0,97870.0,3e-07]
[1733479688896,0.46938154,97871.0,97870.0,3e-07]
[1733479689925,0.354371,97861.0,97860.0,0.0008654]
[1733479690143,0.56340254,97861.0,97860.0,0.0008654]
[1733479691408,0.57240254,97861.0,97860.0,0.0008654]
[1733479691800,0.58140254,97861.0,97860.0,0.0008654]
[1733479692074,0.60166591,97861.0,97860.0,0.0008654]
[1733479692527,0.58140254,97861.0,97860.0,0.0008654]
[1733479692741,0.66420254,97861.0,97855.0,0.00031102]
[1733479692955,0.204381,97856.0,97855.0,0.00031102]
[1733479693170,0.204381,97856.0,97850.0,8.2e-07]
[1733479693171,0.204392,97851.0,97850.0,8.2e-07]
[1733479693395,0.64622354,97851.0,97850.0,8.2e-07]
[1733479694083,0.308392,97851.0,97850.0,8.2e-07]
[1733479694297,0.00058142,97851.0,97850.0,8.2e-07]
[1733479694513,0.204383,97856.0,97850.0,0.07980082]
[1733479694720,0.009,97851.0,97850.0,0.08328523]
[1733479694926,0.018,97851.0,97850.0,0.08386665]
[1733479695162,0.018,97851.0,97850.0,0.00406665]
[1733479695163,0.009,97851.0,97850.0,0.00406665]
[1733479695387,0.01927746,97851.0,97850.0,0.00406665]
[1733479695629,0.01927746,97851.0,97850.0,0.00058224]
[1733479695955,0.16927746,97851.0,97850.0,0.00058224]
[1733479695961,0.27430908,97851.0,97850.0,0.00058224]
[1733479696189,0.34853154,97851.0,97850.0,0.00058224]
[1733479696406,0.33953154,97851.0,97850.0,0.00058224]
[1733479696620,0.33053154,97851.0,97850.0,0.00058224]
[1733479697056,0.33953154,97851.0,97850.0,0.00058224]
[1733479697270,0.33053154,97851.0,97850.0,0.00058224]
[1733479697474,0.33953154,97851.0,97850.0,0.00058224]
[1733479697748,0.34853154,97851.0,97850.0,0.00058224]
[1733479697972,0.25503154,97851.0,97850.0,0.00058224]
[1733479698212,0.168,97851.0,97850.0,0.00058224]
[1733479698469,0.16927754,97851.0,97850.0,0.00058224]
[1733479699331,0.018,97851.0,97850.0,0.00058224]
[1733479699784,0.01927748,97851.0,97850.0,0.00058224]
[1733479700249,0.01027748,97851.0,97850.0,0.00058224]
[1733479700870,0.01927748,97851.0,97850.0,0.00058224]
[1733479701079,0.01027748,97851.0,97850.0,0.00058224]
[1733479701279,0.01927748,97851.0,97850.0,0.00058224]
[1733479701728,0.018,97851.0,97850.0,0.00058224]
[1733479701951,0.01927748,97851.0,97850.0,0.00058224]
[1733479702194,0.16927748,97851.0,97850.0,0.00058224]
[1733479703050,0.16827748,97851.0,97850.0,0.00058224]
[1733479703337,0.017,97851.0,97850.0,0.00058224]
[1733479703531,0.01827757,97851.0,97850.0,0.00058224]
[1733479707003,0.16827757,97851.0,97850.0,0.00058224]
[1733479707253,0.01827757,97851.0,97850.0,0.00058224]
[1733479708181,0.16827757,97851.0,97850.0,0.00058224]
[1733479710293,0.167,97851.0,97850.0,0.00058224]
[1733479711277,0.16827748,97851.0,97850.0,0.00058224]
[1733479715467,0.167,97851.0,97850.0,0.00058224]
[1733479715678,0.017,97851.0,97850.0,0.00058224]
[1733479715887,0.017,97851.0,97850.0,0.07688224]
[1733479716303,0.017,97851.0,97850.0,0.12927596]
[1733479716496,0.01453692,97851.0,97850.0,0.15227596]
[1733479717865,0.009,97851.0,97850.0,0.15227596]
[1733479718070,0.204381,97857.0,97851.0,0.023]
[1733479718782,0.204375,97859.0,97852.0,0.00377337]
[1733479718996,0.204375,97859.0,97853.0,0.023]
[1733479719455,0.204386,97855.0,97851.0,0.023]
[1733479719656,0.204377,97858.0,97854.0,0.00377337]
[1733479719860,0.204377,97858.0,97851.0,0.023]
[1733479720080,0.204377,97858.0,97855.0,0.00377337]
[1733479720318,0.009,97859.0,97851.0,0.023]
[1733479720532,0.009,97859.0,97856.0,0.00377337]
[1733479720745,0.009,97859.0,97857.0,0.023]
[1733479720989,0.009,97859.0,97858.0,0.023]
[1733479721212,0.009,97859.0,97858.0,0.11452033]
[1733479721417,0.00302641,97860.0,97859.0,0.023]
[1733479722044,0.00302641,97860.0,97859.0,0.02676449]
[1733479724177,0.01202641,97860.0,97859.0,0.02776449]
[1733479724839,0.01202641,97860.0,97859.0,0.02676449]
[1733479725356,0.02102641,97860.0,97859.0,0.02776449]
[1733479725847,0.02102641,97860.0,97859.0,0.02651329]
[1733479727971,0.02102641,97860.0,97859.0,0.13154483]
[1733479728988,0.02102641,97860.0,97859.0,0.00476449]
[1733479729596,0.0197316,97860.0,97859.0,0.001]
[1733479729819,0.06407941,97916.0,97859.0,0.001]
[1733479729820,0.20426,97915.0,97887.0,0.204315]
[1733479730028,0.20428,97905.0,97888.0,0.13760304]
[1733479730269,0.20427,97910.0,97889.0,0.023]
[1733479730478,0.20428,97905.0,97889.0,0.12803154]
[1733479730693,0.204253,97918.0,97889.0,0.12803154]
[1733479730949,0.204253,97918.0,97889.0,0.184813]
[1733479731163,0.204241,97924.0,97889.0,0.57255209]
[1733479731376,0.0018498,97890.0,97889.0,0.67744701]
[1733479731585,0.0108498,97890.0,97889.0,0.81435395]
[1733479731825,0.0108498,97890.0,97889.0,0.67720866]
[1733479732045,0.2059584,97930.0,97906.0,0.204276]
[1733479732273,0.0017304,97930.0,97908.0,0.023]
[1733479732489,0.0017304,97930.0,97915.0,0.023]
[1733479732952,0.0017304,97930.0,97917.0,0.023]
[1733479733580,0.204229,97929.0,97918.0,0.00672246]
[1733479733787,0.204246,97922.0,97918.0,0.00672246]
[1733479733968,0.204255,97917.0,97907.0,0.023]
[1733479734208,0.204255,97917.0,97909.0,0.023]
[1733479734410,0.0017304,97930.0,97909.0,0.023]
[1733479734411,0.0017304,97930.0,97909.0,0.12803154]
[1733479734839,0.204234,97927.0,97909.0,0.12803154]
[1733479735045,0.204244,97922.0,97909.0,0.12803154]
[1733479735270,0.0047304,97930.0,97899.0,0.284691]
[1733479735500,0.00127653,97929.0,97907.0,0.009]
[1733479735712,0.204259,97915.0,97909.0,0.001]
[1733479736064,0.204259,97915.0,97909.0,0.002]
[1733479736299,0.204268,97911.0,97909.0,0.001]
[1733479737062,0.204276,97907.0,97899.0,0.004]
[1733479737283,0.204287,97902.0,97899.0,0.004]
[1733479737485,0.204287,97902.0,97899.0,0.0039]
[1733479737920,0.204287,97902.0,97891.0,0.023]
[1733479738322,0.204287,97902.0,97892.0,0.0054825]
[1733479738528,0.408574,97902.0,97892.0,0.0054825]
[1733479738931,0.412574,97902.0,97899.0,0.001]
[1733479739139,0.408574,97902.0,97891.0,0.023]
[1733479739531,0.408574,97902.0,97892.0,0.0064825]
[1733479739773,0.204287,97902.0,97892.0,0.0064825]
[1733479739952,0.204287,97902.0,97892.0,0.0054825]
[1733479740205,0.204287,97902.0,97899.0,0.001]
[1733479740411,0.204279,97905.0,97899.0,0.001]
[1733479740630,0.204289,97901.0,97899.0,0.001]
[1733479741483,0.204289,97901.0,97891.0,0.023]
[1733479741900,0.204289,97901.0,97892.0,0.00649919]
[1733479742324,0.205289,97901.0,97892.0,0.00649919]
[1733479742536,0.205289,97901.0,97892.0,0.00549919]
[1733479742958,0.204289,97901.0,97899.0,0.001]
[1733479743191,0.2043,97895.0,97892.0,0.00549919]
[1733479743401,0.2043,97895.0,97891.0,0.023]
[1733479743615,0.204289,97901.0,97892.0,0.001]
[1733479744101,0.199289,97901.0,97892.0,0.001]
[1733479744308,0.204297,97897.0,97892.0,0.001]
[1733479745002,0.20429,97900.0,97887.0,0.023]
[1733479745210,0.204285,97903.0,97891.0,0.023]
[1733479745638,0.001,97897.0,97892.0,0.009]
[1733479746052,0.204285,97903.0,97887.0,0.023]
[1733479746259,0.204285,97903.0,97889.0,0.00917471]
[1733479746468,0.001,97900.0,97891.0,0.001]
[1733479746679,0.001,97900.0,97890.0,0.023]
[1733479747358,0.001,97900.0,97890.0,0.431619]
[1733479747590,0.408556,97906.0,97890.0,0.227309]
[1733479747798,0.204286,97902.0,97892.0,0.009]
[1733479748005,0.001,97897.0,97892.0,0.009]
[1733479748266,0.001,97897.0,97892.0,0.018]
[1733479748484,0.204286,97902.0,97892.0,0.02774688]
[1733479748738,0.204286,97902.0,97889.0,0.03215183]
[1733479748739,0.001,97900.0,97890.0,0.018]
[1733479748953,0.001,97900.0,97890.0,0.009]
[1733479749145,0.204286,97902.0,97889.0,0.00017471]
[1733479749409,0.408572,97902.0,97892.0,0.009]
[1733479749617,0.0017298,97910.0,97889.0,0.00017471]
[1733479749827,0.001,97897.0,97893.0,0.00548617]
[1733479750038,0.001,97897.0,97893.0,0.02419779]
[1733479750250,0.001,97897.0,97894.0,0.00548617]
[1733479751077,0.204288,97901.0,97894.0,0.00548617]
[1733479751817,0.204288,97901.0,97892.0,0.001]
[1733479752028,0.001,97897.0,97895.0,0.00548617]
[1733479752233,0.001,97897.0,97894.0,0.01]
[1733479752457,0.208288,97901.0,97894.0,0.02474917]
[1733479752655,0.208288,97901.0,97894.0,0.001]
[1733479753077,0.204288,97901.0,97889.0,0.00017471]
[1733479753287,0.204288,97901.0,97895.0,0.009]
[1733479754121,0.204288,97901.0,97896.0,0.00548617]
[1733479754328,0.001,97897.0,97896.0,0.00548617]
[1733479754737,0.204288,97901.0,97896.0,0.00548617]
[1733479754951,0.204282,97904.0,97896.0,0.00548617]
[1733479755190,0.204282,97904.0,97891.0,0.204308]
[1733479755191,0.004,97901.0,97894.0,0.001]
[1733479755392,0.204282,97904.0,97891.0,0.204308]
[1733479755545,0.204282,97904.0,97896.0,0.009]
[1733479755753,0.001,97897.0,97896.0,0.018]
[1733479755955,0.001,97897.0,97896.0,0.01448617]
[1733479756320,0.001,97897.0,97896.0,0.01548617]
[1733479756783,0.001,97897.0,97896.0,0.29000105]
[1733479756957,0.0017298,97910.0,97909.0,0.204271]
[1733479757289,0.0017298,97910.0,97909.0,0.33778198]
[1733479757460,0.0017298,97910.0,97909.0,0.41318198]